[Event "WALTON 1st Div Women League 2023"]
[Site "Dhaka"]
[Date "2023.03.22"]
[Round "1.15"]
[White "Sabikun Nahar, Tonima"]
[Black "Zowena, Mehbish"]
[Result "1-0"]
[ECO "C65"]
[WhiteElo "1515"]
[BlackElo "1121"]
[Annotator "NA RC COMBH"]
[PlyCount "59"]
[EventDate "2023.03.22"]
[EventType "team-tourn"]
[EventCountry "BAN"]
[SourceTitle "playchess.com"]
[Source "ChessBase"]
[SourceQuality "1"]
[TimeControl "5400+30"]

1. e4 {[%emt 0:00:30]} e5 {[%emt 0:03:41]} 2. Nf3 {[%emt 0:00:06]} Nc6 {[%emt 0:00:25]} 3. Bb5 {[%emt 0:00:27]} Nf6 {[%emt 0:00:54]} 4. d3 {[%emt 0:01:10]} Bc5 {[%emt 0:01:49]} 5. O-O {[%emt 0:01:00]} O-O {[%emt 0:01:37]} 6. Bxc6 {[%emt 0:00:53]} dxc6 {[%emt 0:00:12]} 7. Nxe5 {[%emt 0:00:34]} Qd6 {[%emt 0:07:35]} 8. Nf3 {[%emt 0:03:29]} Bg4 {[%emt 0:04:45]} 9. h3 {[%emt 0:00:53]} Bh5 {[%emt 0:01:29]} 10. Nbd2 {[%emt 0:03:20]} b5 {[%emt 0:07:30]} 11. Nb3 {[%emt 0:16:54]} Bb6 {[%emt 0:01:01]} 12. Re1 {[%emt 0:05:35]} Rad8 {[%emt 0:01:27]} 13. e5 {[%emt 0:03:16]} Qe6 {[%emt 0:05:04]} 14. exf6 {[%emt 0:00:48]} Qxf6 {[%emt 0:00:09]} 15. g4 {[%emt 0:06:19]} Bg6 {[%emt 0:01:22]} 16. Bg5 {[%emt 0:01:18]} Qd6 {[%emt 0:00:50]} 17. d4 {[%emt 0:02:06]} Rde8 {[%emt 0:02:40]} 18. c3 {[%emt 0:07:35]} f5 {[%emt 0:02:02]} 19. Ne5 {[%emt 0:02:08]} fxg4 {[%emt 0:02:00]} 20. hxg4 {[%emt 0:02:16]} c5 {[%emt 0:01:01]} 21. Nxg6 {[%emt 0:04:39]} Qxg6 {[%emt 0:00:53]} 22. Rxe8 {[%emt 0:01:09]} Rxe8 {[%emt 0:00:27]} 23. dxc5 {[%emt 0:02:17]} Bxc5 {[%emt 0:02:08]} 24. Qd5+ {[%emt 0:00:08]} Qe6 {[%emt 0:01:05]} 25. Qxe6+ {[%emt 0:00:04]} Rxe6 {[%emt 0:00:16]} 26. Nxc5 {[%emt 0:00:02]} Re2 {[%emt 0:01:29]} 27. Rb1 {[%emt 0:00:14]} Re5 {[%emt 0:01:00]} 28. Be3 {[%emt 0:00:02]} h5 {[%emt 0:00:22]} 29. g5 {[%emt 0:00:09]} Kf7 {[%emt 0:00:22]} 30. Rd1 {[%emt 0:00:05]} 1-0

[Event "WALTON 1st Div Women League 2023"]
[Site "Dhaka"]
[Date "2023.03.23"]
[Round "2.1"]
[White "Rashma, Alam"]
[Black "Nazia, Jafrin Mohona"]
[Result "1-0"]
[ECO "C20"]
[WhiteElo "1047"]
[BlackElo "1206"]
[Annotator "NA RC COMBH"]
[PlyCount "109"]
[EventDate "2023.03.22"]
[EventType "team-tourn"]
[EventCountry "BAN"]
[SourceTitle "playchess.com"]
[Source "ChessBase"]
[SourceQuality "1"]
[TimeControl "5400+30"]

1. e4 {[%emt 0:00:06]} e5 {[%emt 0:00:06]} 2. d3 {[%emt 0:00:07]} Nc6 {[%emt 0:00:24]} 3. Na3 {[%emt 0:00:08]} Nf6 {[%emt 0:00:31]} 4. b3 {[%emt 0:00:31]} d5 {[%emt 0:01:01]} 5. Bb2 {[%emt 0:01:47]} dxe4 {[%emt 0:01:43]} 6. Qe2 {[%emt 0:04:15]} exd3 {[%emt 0:02:08]} 7. cxd3 {[%emt 0:00:27]} Bb4+ {[%emt 0:00:48]} 8. Kd1 {[%emt 0:01:59]} O-O {[%emt 0:00:25]} 9. Nc4 {[%emt 0:07:21]} Nd5 {[%emt 0:04:53]} 10. Qh5 {[%emt 0:07:09]} Bc3 {[%emt 0:02:00]} 11. Bxc3 {[%emt 0:03:20]} Nxc3+ {[%emt 0:00:06]} 12. Kc2 {[%emt 0:00:55]} Nd5 {[%emt 0:00:51]} 13. Re1 {[%emt 0:01:28]} Ndb4+ {[%emt 0:05:04]} 14. Kb2 {[%emt 0:01:23]} Nxd3+ {[%emt 0:00:24]} 15. Bxd3 {[%emt 0:03:21]} Qxd3 {[%emt 0:00:20]} 16. Nf3 {[%emt 0:02:06]} Be6 {[%emt 0:08:38]} 17. Ncxe5 {[%emt 0:04:19]} Nxe5 {[%emt 0:01:00]} 18. Qxe5 {[%emt 0:02:06]} Qd6 {[%emt 0:03:31]} 19. Qh5 {[%emt 0:05:50]} a5 {[%emt 0:03:48]} 20. Rd1 {[%emt 0:04:23]} Qe7 {[%emt 0:02:56]} 21. Rd4 {[%emt 0:01:47]} b6 {[%emt 0:01:55]} 22. Ng5 {[%emt 0:02:30]} h6 {[%emt 0:01:57]} 23. Nxe6 {[%emt 0:01:58]} Qxe6 {[%emt 0:00:47]} 24. Qd1 {[%emt 0:00:50]} Qf6 {[%emt 0:01:38]} 25. f3 {[%emt 0:00:39]} Rad8 {[%emt 0:00:18]} 26. Kc3 {[%emt 0:42:45]} Rxd4 {[%emt 0:56:18]} 27. Qxd4 {[%emt 0:00:00]} Qxd4+ {[%emt 0:00:00]} 28. Kxd4 {[%emt 0:00:00]} Rd8+ {[%emt 0:00:00]} 29. Kc4 {[%emt 0:00:00]} c6 {[%emt 0:00:00]} 30. a4 {[%emt 0:00:00]} c5 {[%emt 0:00:00]} 31. Kb5 {[%emt 0:00:00]} Rb8 {[%emt 0:00:00]} 32. Rd1 {[%emt 0:00:00]} Rc8 {[%emt 0:00:00]} 33. Rd6 {[%emt 0:00:00]} Re8 {[%emt 0:00:00]} 34. Rxb6 {[%emt 0:00:00]} Ra8 {[%emt 0:00:00]} 35. Kxc5 {[%emt 0:00:00]} Kf8 {[%emt 0:00:00]} 36. Kb5 {[%emt 0:00:00]} f5 {[%emt 0:00:00]} 37. Ra6 {[%emt 0:00:00]} Rb8+ {[%emt 0:00:00]} 38. Rb6 {[%emt 0:00:00]} Rxb6+ {[%emt 0:00:00]} 39. Kxb6 {[%emt 0:00:00]} g5 {[%emt 0:00:00]} 40. Kxa5 {[%emt 0:00:00]} Kf7 {[%emt 0:00:00]} 41. b4 {[%emt 0:00:00]} h5 {[%emt 0:00:00]} 42. b5 {[%emt 0:00:00]} Kf6 {[%emt 0:00:00]} 43. b6 {[%emt 0:00:00]} g4 {[%emt 0:00:00]} 44. b7 {[%emt 0:00:00]} f4 {[%emt 0:00:00]} 45. b8=Q {[%emt 0:00:00]} g3 {[%emt 0:00:00]} 46. Qxf4+ {[%emt 0:00:00]} Ke6 {[%emt 0:00:00]} 47. Qxg3 {[%emt 0:00:00]} h4 {[%emt 0:00:00]} 48. Qg6+ {[%emt 0:11:00]} Ke5 {[%emt 0:11:00]} 49. h3 {[%emt 0:00:00]} Kf4 {[%emt 0:00:00]} 50. Qe4+ {[%emt 0:01:00]} Kg3 {[%emt 0:01:00]} 51. Qg4+ {[%emt 0:00:30]} Kf2 {[%emt 0:00:30]} 52. f4 {[%emt 0:00:30]} Ke3 {[%emt 0:00:30]} 53. f5 {[%emt 0:00:00]} Kf2 {[%emt 0:00:00]} 54. f6 {[%emt 0:00:00]} Ke3 {[%emt 0:00:00]} 55. f7 {[%emt 0:00:00]} 1-0

[Event "WALTON 1st Div Women League 2023"]
[Site "Dhaka"]
[Date "2023.03.23"]
[Round "2.2"]
[White "Jarin, Tasnim"]
[Black "Monika, Kundu"]
[Result "0-1"]
[ECO "C50"]
[WhiteElo "1180"]
[BlackElo "1333"]
[Annotator "NA RC COMBH"]
[PlyCount "90"]
[EventDate "2023.03.22"]
[EventType "team-tourn"]
[EventCountry "BAN"]
[SourceTitle "playchess.com"]
[Source "ChessBase"]
[SourceQuality "1"]
[TimeControl "5400+30"]

1. e4 {[%emt 0:00:03]} e5 {[%emt 0:04:12]} 2. Nf3 {[%emt 0:00:11]} Nc6 {[%emt 0:01:28]} 3. Bc4 {[%emt 0:00:11]} h6 {[%emt 0:00:52]} 4. d4 {[%emt 0:00:34]} exd4 {[%emt 0:00:26]} 5. Nxd4 {[%emt 0:00:09]} Qe7 {[%emt 0:01:26]} 6. O-O {[%emt 0:00:47]} Nxd4 {[%emt 0:00:50]} 7. Qxd4 {[%emt 0:00:19]} d6 {[%emt 0:01:09]} 8. Nc3 {[%emt 0:01:05]} Be6 {[%emt 0:00:19]} 9. Re1 {[%emt 0:00:40]} Bxc4 {[%emt 0:00:31]} 10. Qxc4 {[%emt 0:00:15]} Nf6 {[%emt 0:00:58]} 11. Bd2 {[%emt 0:00:35]} O-O-O {[%emt 0:00:21]} 12. Be3 {[%emt 0:03:25]} d5 {[%emt 0:03:27]} 13. exd5 {[%emt 0:00:46]} Qb4 {[%emt 0:00:18]} 14. Qxb4 {[%emt 0:01:49]} Bxb4 {[%emt 0:00:11]} 15. Bd4 {[%emt 0:07:13]} Bxc3 {[%emt 0:01:33]} 16. Bxc3 {[%emt 0:00:24]} Rxd5 {[%emt 0:00:34]} 17. Re7 {[%emt 0:01:45]} Rhd8 {[%emt 0:01:44]} 18. Rf1 {[%emt 0:02:59]} R5d7 {[%emt 0:02:00]} 19. Rfe1 {[%emt 0:03:44]} Rxe7 {[%emt 0:00:10]} 20. Rxe7 {[%emt 0:00:08]} Nd5 {[%emt 0:01:12]} 21. Re1 {[%emt 0:00:52]} Nxc3 {[%emt 0:03:34]} 22. bxc3 {[%emt 0:00:10]} Rd2 {[%emt 0:01:06]} 23. Rc1 {[%emt 0:00:37]} Rd6 {[%emt 0:00:15]} 24. Kf1 {[%emt 0:00:42]} Rc6 {[%emt 0:00:14]} 25. Re1 {[%emt 0:00:22]} Rxc3 {[%emt 0:00:14]} 26. Re7 {[%emt 0:00:30]} Rxc2 {[%emt 0:00:23]} 27. Rxf7 {[%emt 0:00:15]} Rxa2 {[%emt 0:00:38]} 28. Rxg7 {[%emt 0:00:09]} b5 {[%emt 0:00:49]} 29. f4 {[%emt 0:00:29]} b4 {[%emt 0:00:17]} 30. f5 {[%emt 0:00:04]} b3 {[%emt 0:01:15]} 31. Re7 {[%emt 0:00:41]} b2 {[%emt 0:00:06]} 32. Re1 {[%emt 0:00:50]} Ra1 {[%emt 0:00:11]} 33. f6 {[%emt 0:00:30]} Rxe1+ {[%emt 0:00:24]} 34. Kxe1 {[%emt 0:00:18]} b1=Q+ {[%emt 0:00:21]} 35. Ke2 {[%emt 0:00:57]} Qb2+ {[%emt 0:00:15]} 36. Kf1 {[%emt 0:00:23]} Qxf6+ {[%emt 0:00:21]} 37. Kg1 {[%emt 0:00:47]} Kd7 {[%emt 1:14:56]} 38. g3 {[%emt 1:13:52]} Ke6 {[%emt 0:00:30]} 39. Kg2 {[%emt 0:00:30]} Ke5 {[%emt 0:00:30]} 40. Kh3 {[%emt 0:00:30]} Qf1+ {[%emt 0:00:00]} 41. Kh4 {[%emt 0:00:00]} Kf6 {[%emt 0:00:00]} 42. Kg4 {[%emt 0:00:00]} Kg6 {[%emt 0:00:00]} 43. Kh4 {[%emt 0:00:00]} Qg2 {[%emt 0:00:00]} 44. Kg4 {[%emt 0:00:00]} h5+ {[%emt 0:00:00]} 45. Kf4 {[%emt 0:00:00]} Qxh2 {[%emt 0:00:00]} 0-1

[Event "WALTON 1st Div Women League 2023"]
[Site "Dhaka"]
[Date "2023.03.23"]
[Round "2.3"]
[White "Sayeda Nusaibah, Mahmud"]
[Black "Zowena, Mehbish"]
[Result "0-1"]
[ECO "C48"]
[WhiteElo "1191"]
[BlackElo "1121"]
[Annotator "NA RC COMBH"]
[PlyCount "86"]
[EventDate "2023.03.22"]
[EventType "team-tourn"]
[EventCountry "BAN"]
[SourceTitle "playchess.com"]
[Source "ChessBase"]
[SourceQuality "1"]
[TimeControl "5400+30"]

1. e4 {[%emt 0:00:03]} e5 {[%emt 0:00:05]} 2. Nf3 {[%emt 0:00:19]} Nc6 {[%emt 0:00:05]} 3. Nc3 {[%emt 0:00:10]} Bc5 {[%emt 0:00:21]} 4. Bb5 {[%emt 0:00:11]} Nf6 {[%emt 0:00:06]} 5. O-O {[%emt 0:00:11]} d6 {[%emt 0:00:10]} 6. h3 {[%emt 0:00:15]} Bd7 {[%emt 0:00:30]} 7. d3 {[%emt 0:00:23]} h6 {[%emt 0:00:59]} 8. Qe2 {[%emt 0:02:00]} a6 {[%emt 0:00:51]} 9. Bc4 {[%emt 0:03:13]} Nd4 {[%emt 0:01:52]} 10. Qd1 {[%emt 0:01:08]} b5 {[%emt 0:02:33]} 11. Bd5 {[%emt 0:02:12]} c6 {[%emt 0:00:56]} 12. Bb3 {[%emt 0:01:11]} a5 {[%emt 0:01:21]} 13. a3 {[%emt 0:02:32]} Bb6 {[%emt 0:07:28]} 14. Be3 {[%emt 0:05:25]} c5 {[%emt 0:04:47]} 15. Ba2 {[%emt 0:05:42]} b4 {[%emt 0:10:55]} 16. Nd5 {[%emt 0:04:48]} bxa3 {[%emt 0:06:03]} 17. bxa3 {[%emt 0:02:26]} Rb8 {[%emt 0:04:42]} 18. c3 {[%emt 1:07:21]} Nc6 {[%emt 0:04:17]} 19. Nxb6 {[%emt 0:00:00]} Rxb6 {[%emt 0:01:25]} 20. d4 {[%emt 0:00:00]} cxd4 {[%emt 0:02:30]} 21. cxd4 {[%emt 0:00:00]} Rb8 {[%emt 0:09:01]} 22. Qd3 {[%emt 0:00:00]} O-O {[%emt 0:02:13]} 23. Bd5 {[%emt 0:00:00]} Re8 {[%emt 0:01:53]} 24. Rfc1 {[%emt 0:00:00]} Qc8 {[%emt 0:01:49]} 25. Bxc6 {[%emt 0:00:00]} Bxc6 {[%emt 0:01:42]} 26. d5 {[%emt 0:00:00]} Bb5 {[%emt 0:01:26]} 27. Qd2 {[%emt 0:00:00]} Qd7 {[%emt 0:00:56]} 28. Qxa5 {[%emt 0:00:00]} Nxe4 {[%emt 0:00:49]} 29. Qb4 {[%emt 0:00:00]} Nf6 {[%emt 0:01:01]} 30. Rab1 {[%emt 0:00:00]} Nxd5 {[%emt 0:01:55]} 31. Qe4 {[%emt 0:00:00]} Nxe3 {[%emt 0:02:54]} 32. Qxe3 {[%emt 0:00:00]} e4 {[%emt 0:00:17]} 33. Nd2 {[%emt 0:00:00]} d5 {[%emt 0:00:40]} 34. Qd4 {[%emt 0:00:00]} Bd3 {[%emt 0:01:42]} 35. Rxb8 {[%emt 0:00:00]} Rxb8 {[%emt 0:00:51]} 36. Rc5 {[%emt 0:00:00]} Rb5 {[%emt 0:01:23]} 37. Rc3 {[%emt 0:00:00]} Rb2 {[%emt 0:02:56]} 38. Nf1 {[%emt 0:00:00]} Rb1 {[%emt 0:24:06]} 39. Rc5 {[%emt 0:00:00]} Rxf1+ {[%emt 0:00:00]} 40. Kh2 {[%emt 0:00:00]} Qd6+ {[%emt 0:00:00]} 41. g3 {[%emt 0:00:00]} Qf6 {[%emt 0:00:00]} 42. Kg2 {[%emt 0:00:00]} Qf3+ {[%emt 0:00:00]} 43. Kh2 {[%emt 0:00:00]} Qh1# {[%emt 0:00:00]} 0-1

[Event "WALTON 1st Div Women League 2023"]
[Site "Dhaka"]
[Date "2023.03.23"]
[Round "2.5"]
[White "Sidratul, Muntaha"]
[Black "Nusrat, Jahan Liza"]
[Result "0-1"]
[ECO "C47"]
[WhiteElo "1185"]
[BlackElo "1573"]
[Annotator "NA RC COMBH"]
[PlyCount "52"]
[EventDate "2023.03.22"]
[EventType "team-tourn"]
[EventCountry "BAN"]
[SourceTitle "playchess.com"]
[Source "ChessBase"]
[SourceQuality "1"]
[TimeControl "5400+30"]

1. e4 {[%emt 0:00:01]} Nc6 {[%emt 0:00:02]} 2. Nc3 {[%emt 0:00:15]} Nf6 {[%emt 0:00:38]} 3. d4 {[%emt 0:00:35]} e5 {[%emt 0:00:18]} 4. Nf3 {[%emt 0:00:47]} exd4 {[%emt 0:01:44]} 5. Nxd4 {[%emt 0:00:42]} Bc5 {[%emt 0:01:44]} 6. Nf3 {[%emt 0:01:36]} d6 {[%emt 0:00:55]} 7. Bb5 {[%emt 0:01:34]} Bd7 {[%emt 0:00:29]} 8. a3 {[%emt 0:01:05]} h6 {[%emt 0:00:19]} 9. h3 {[%emt 0:04:37]} O-O {[%emt 0:00:05]} 10. O-O {[%emt 0:00:16]} a6 {[%emt 0:00:02]} 11. Bd3 {[%emt 0:01:18]} Ne7 {[%emt 0:00:15]} 12. Re1 {[%emt 0:01:00]} Ng6 {[%emt 0:00:08]} 13. Bc4 {[%emt 0:05:11]} Nh5 {[%emt 0:00:27]} 14. Bd2 {[%emt 0:02:13]} Nhf4 {[%emt 0:00:08]} 15. Nd5 {[%emt 0:02:29]} Nh5 {[%emt 0:07:12]} 16. b4 {[%emt 0:02:56]} Ba7 {[%emt 0:00:27]} 17. a4 {[%emt 0:01:16]} c6 {[%emt 0:01:26]} 18. Nc3 {[%emt 0:01:57]} Qc7 {[%emt 0:06:13]} 19. Bb3 {[%emt 0:05:07]} Rae8 {[%emt 0:05:32]} 20. a5 {[%emt 0:05:30]} Nhf4 {[%emt 0:00:10]} 21. Qc1 {[%emt 0:04:29]} d5 {[%emt 0:02:36]} 22. exd5 {[%emt 0:03:19]} Nxh3+ {[%emt 0:00:47]} 23. gxh3 {[%emt 0:02:04]} Qg3+ {[%emt 0:00:09]} 24. Kh1 {[%emt 0:02:17]} Qxf3+ {[%emt 0:00:09]} 25. Kg1 {[%emt 0:02:06]} Bxh3 {[%emt 0:00:44]} 26. Ne2 {[%emt 0:01:47]} Qg2# {[%emt 0:00:14]} 0-1

[Event "WALTON 1st Div Women League 2023"]
[Site "Dhaka"]
[Date "2023.03.23"]
[Round "2.6"]
[White "Neelava, Choudhury"]
[Black "Sonia, Akhter"]
[Result "1-0"]
[ECO "C78"]
[WhiteElo "1522"]
[BlackElo "1180"]
[Annotator "NA RC COMBH"]
[PlyCount "75"]
[EventDate "2023.03.22"]
[EventType "team-tourn"]
[EventCountry "BAN"]
[SourceTitle "playchess.com"]
[Source "ChessBase"]
[SourceQuality "1"]
[TimeControl "5400+30"]

1. e4 {[%emt 0:00:03]} Nc6 {[%emt 0:03:40]} 2. Nf3 {[%emt 0:00:14]} e5 {[%emt 0:01:14]} 3. Bb5 {[%emt 0:00:12]} Nf6 {[%emt 0:01:11]} 4. O-O {[%emt 0:00:10]} Bc5 {[%emt 0:01:06]} 5. c3 {[%emt 0:00:18]} a6 {[%emt 0:01:58]} 6. Ba4 {[%emt 0:00:23]} O-O {[%emt 0:00:26]} 7. d4 {[%emt 0:00:19]} Bb6 {[%emt 0:03:57]} 8. Bg5 {[%emt 0:01:42]} d6 {[%emt 0:01:41]} 9. Bxc6 {[%emt 0:02:20]} bxc6 {[%emt 0:01:38]} 10. Nbd2 {[%emt 0:00:10]} Re8 {[%emt 0:00:20]} 11. Qc2 {[%emt 0:01:07]} Bg4 {[%emt 0:02:49]} 12. Rad1 {[%emt 0:04:51]} h6 {[%emt 0:04:18]} 13. Bh4 {[%emt 0:04:13]} g5 {[%emt 0:17:05]} 14. Bg3 {[%emt 0:01:28]} Nh5 {[%emt 0:00:35]} 15. dxe5 {[%emt 0:07:58]} Nxg3 {[%emt 0:03:34]} 16. hxg3 {[%emt 0:00:29]} Qd7 {[%emt 0:06:25]} 17. exd6 {[%emt 0:01:14]} Ba7 {[%emt 0:01:19]} 18. Nc4 {[%emt 0:02:04]} Qe6 {[%emt 0:02:03]} 19. d7 {[%emt 0:01:29]} Red8 {[%emt 0:01:35]} 20. Nce5 {[%emt 0:01:44]} Bxf3 {[%emt 0:02:27]} 21. Nxf3 {[%emt 0:00:07]} Rab8 {[%emt 0:06:58]} 22. Qa4 {[%emt 0:08:07]} Rxb2 {[%emt 0:02:22]} 23. Qxa6 {[%emt 0:01:39]} Rxa2 {[%emt 0:00:44]} 24. Qb7 {[%emt 0:01:28]} Bb6 {[%emt 0:01:16]} 25. Nd4 {[%emt 0:05:03]} Bxd4 {[%emt 0:04:25]} 26. Rxd4 {[%emt 0:00:32]} Qe5 {[%emt 0:04:03]} 27. Qxc6 {[%emt 0:01:27]} Ra7 {[%emt 0:04:54]} 28. Qxh6 {[%emt 0:00:51]} Qg7 {[%emt 0:01:30]} 29. Qc6 {[%emt 0:01:06]} Qh7 {[%emt 0:01:39]} 30. Qf6 {[%emt 0:00:59]} Raa8 {[%emt 0:01:57]} 31. Qxg5+ {[%emt 0:00:37]} Qg7 {[%emt 0:00:38]} 32. Qc5 {[%emt 0:52:06]} c6 {[%emt 0:02:59]} 33. Qxc6 {[%emt 0:00:00]} Qf8 {[%emt 0:01:08]} 34. Rfd1 {[%emt 0:00:00]} Rdc8 {[%emt 0:00:29]} 35. dxc8=Q {[%emt 0:00:00]} Rxc8 {[%emt 0:00:34]} 36. Qxc8 {[%emt 0:00:00]} Qxc8 {[%emt 0:00:52]} 37. Rd8+ {[%emt 0:00:00]} Qxd8 {[%emt 0:00:17]} 38. Rxd8+ {[%emt 0:00:00]} 1-0

[Event "WALTON 1st Div Women League 2023"]
[Site "Dhaka"]
[Date "2023.03.23"]
[Round "2.9"]
[White "Nusrat Jahan, Alo"]
[Black "Nazmin, Akter"]
[Result "1-0"]
[ECO "C41"]
[WhiteElo "1787"]
[BlackElo "1258"]
[Annotator "NA RC COMBH"]
[PlyCount "105"]
[EventDate "2023.03.22"]
[EventType "team-tourn"]
[EventCountry "BAN"]
[SourceTitle "playchess.com"]
[Source "ChessBase"]
[SourceQuality "1"]
[TimeControl "5400+30"]

1. e4 {[%emt 0:01:24]} e5 {[%emt 0:00:14]} 2. Nf3 {[%emt 0:00:08]} d6 {[%emt 0:00:09]} 3. d4 {[%emt 0:00:12]} exd4 {[%emt 0:00:34]} 4. Nxd4 {[%emt 0:00:16]} Nf6 {[%emt 0:00:25]} 5. Nc3 {[%emt 0:00:49]} c6 {[%emt 0:00:18]} 6. Be2 {[%emt 0:02:19]} h6 {[%emt 0:00:27]} 7. O-O {[%emt 0:00:12]} Be7 {[%emt 0:00:18]} 8. Re1 {[%emt 0:01:26]} O-O {[%emt 0:00:19]} 9. Bf4 {[%emt 0:01:07]} Re8 {[%emt 0:00:17]} 10. Bf3 {[%emt 0:03:14]} Nbd7 {[%emt 0:00:20]} 11. Nf5 {[%emt 0:08:27]} Ne5 {[%emt 0:00:26]} 12. Nxe7+ {[%emt 0:06:58]} Qxe7 {[%emt 0:00:39]} 13. Be2 {[%emt 0:03:36]} Rd8 {[%emt 0:01:51]} 14. Bd3 {[%emt 0:11:03]} Bg4 {[%emt 0:01:32]} 15. f3 {[%emt 0:00:24]} Bh5 {[%emt 0:00:18]} 16. Qd2 {[%emt 0:04:01]} Bg6 {[%emt 0:00:30]} 17. h3 {[%emt 0:07:34]} Nh5 {[%emt 0:05:05]} 18. Bh2 {[%emt 0:00:46]} Nf6 {[%emt 0:06:59]} 19. f4 {[%emt 0:07:20]} Nxd3 {[%emt 0:01:02]} 20. cxd3 {[%emt 0:00:40]} Ne8 {[%emt 0:01:08]} 21. Qf2 {[%emt 0:06:56]} Qd7 {[%emt 0:02:14]} 22. d4 {[%emt 0:00:59]} b5 {[%emt 0:00:55]} 23. d5 {[%emt 0:04:36]} c5 {[%emt 0:01:56]} 24. b3 {[%emt 0:05:03]} Qb7 {[%emt 0:04:08]} 25. f5 {[%emt 0:02:15]} Bh7 {[%emt 0:00:30]} 26. Rad1 {[%emt 0:01:25]} Rac8 {[%emt 0:00:28]} 27. Qf3 {[%emt 0:05:40]} a5 {[%emt 0:00:33]} 28. e5 {[%emt 0:01:45]} dxe5 {[%emt 0:00:55]} 29. Rxe5 {[%emt 0:01:29]} Nf6 {[%emt 0:01:10]} 30. d6 {[%emt 0:03:18]} Qxf3 {[%emt 0:00:26]} 31. gxf3 {[%emt 0:00:02]} Rd7 {[%emt 0:00:43]} 32. Nxb5 {[%emt 0:00:33]} c4 {[%emt 0:00:56]} 33. Rc1 {[%emt 0:00:33]} c3 {[%emt 0:00:17]} 34. Rxc3 {[%emt 0:02:25]} Rb8 {[%emt 0:01:26]} 35. a4 {[%emt 0:00:21]} Kf8 {[%emt 0:00:12]} 36. Re7 {[%emt 0:00:20]} Bxf5 {[%emt 0:02:35]} 37. Kg2 {[%emt 0:05:05]} Be6 {[%emt 0:00:06]} 38. Nd4 {[%emt 0:01:21]} Nd5 {[%emt 0:00:04]} 39. Nxe6+ {[%emt 0:00:33]} fxe6 {[%emt 0:00:06]} 40. Rxd7 {[%emt 0:01:19]} Nxc3 {[%emt 0:00:05]} 41. Be5 {[%emt 0:00:41]} Nd5 {[%emt 0:00:38]} 42. Bxg7+ {[%emt 0:00:29]} Kg8 {[%emt 0:01:20]} 43. Bxh6 {[%emt 0:00:32]} Re8 {[%emt 0:01:58]} 44. Ra7 {[%emt 0:00:17]} Rd8 {[%emt 0:00:18]} 45. d7 {[%emt 0:01:48]} Kf7 {[%emt 0:00:12]} 46. Bg5 {[%emt 0:00:24]} Nf6 {[%emt 0:00:12]} 47. Bxf6 {[%emt 0:00:10]} Kxf6 {[%emt 0:00:02]} 48. h4 {[%emt 0:00:40]} Kg6 {[%emt 0:01:03]} 49. Kh3 {[%emt 0:00:10]} e5 {[%emt 0:00:57]} 50. Kg4 {[%emt 0:00:13]} Kh6 {[%emt 0:00:12]} 51. Rxa5 {[%emt 0:01:02]} Rxd7 {[%emt 0:00:04]} 52. Rxe5 {[%emt 0:00:06]} Rd4+ {[%emt 0:00:06]} 53. Re4 {[%emt 0:00:09]} 1-0

[Event "WALTON 1st Div Women League 2023"]
[Site "Dhaka"]
[Date "2023.03.23"]
[Round "2.10"]
[White "Warisa Haider"]
[Black "Srija, Seshadri"]
[Result "0-1"]
[ECO "C55"]
[WhiteElo "1302"]
[BlackElo "2194"]
[Annotator "TA"]
[PlyCount "44"]
[EventDate "2023.03.22"]
[EventType "team-tourn"]
[EventCountry "BAN"]
[SourceTitle "playchess.com"]
[Source "ChessBase"]
[SourceQuality "1"]
[TimeControl "5400+30"]

{[%evp 10,44,37,33,36,0,0,-25,-22,-58,-51,-184,-190,-195,-181,-212,-183,-350,-348,-425,-426,-422,-422,-457,-463,-557,-562,-639,-652,-691,-695,-861,-858,-1415,-1432,-1431,-1420]} 1. e4 {[%emt 0:05:09]} e5 {[%emt 0:00:12]} 2. Nf3 {[%emt 0:00:15][%cal Bg1f3,Bf3d2,Bd2b3][%mdl 32]} Nc6 {[%emt 0:00:10]} 3. Bc4 {[%emt 0:00:26]} Nf6 {[%emt 0:00:15]} 4. d3 {[%emt 0:00:53]} h6 {[%emt 0:00:16]} 5. O-O {[%emt 0:00:33]} d6 {[%emt 0:00:12]} 6. c3 {[%emt 0:00:52]} g5 $1 {[%emt 0:00:54][%mdl 4] [#] now scores much better than the old 6...g6. C55: Two Knights: 4 d3, 4 d4 exd4 5 e5 and Max Lange Attack.} 7. Nfd2 $146 {[%emt 0:02:32]} ({Predecessor:} 7. Nbd2 Bg7 8. Bb3 g4 9. Ne1 h5 10. f4 exf4 11. Rxf4 Qe7 12. d4 Bd7 13. Nd3 O-O-O 14. Rf1 {0-1 So,W (2773)-Naroditsky,D (2617) Titled Tuesday intern op 16th Aug Late blitz 2022 (9)}) 7... Bg7 {[%emt 0:00:23]} 8. Nb3 {[%emt 0:01:40]} Ne7 {[%emt 0:01:32] Black has an edge.} 9. Be3 {[%emt 0:03:49]} c6 {[%emt 0:01:25]} 10. N1d2 {[%emt 0:02:12]} (10. d4 $15) 10... b5 $19 {[%emt 0:00:34]} 11. Bxf7+ {[%emt 0:08:45]} Kxf7 {[%emt 0:00:09]} 12. d4 {[%emt 0:01:50]} Re8 {[%emt 0:01:40]} 13. Nf3 $2 {[%emt 0:03:02] [#]} (13. dxe5 dxe5 14. Nc5) 13... Nxe4 {[%emt 0:01:23]} 14. Qd3 {[%emt 0:02:41]} Bf5 {[%emt 0:00:22][%cal Oe4g3] ...Ng3! is the strong threat. Black is clearly winning.} 15. Qe2 {[%emt 0:07:00]} Ng6 {[%emt 0:01:51]} 16. Nfd2 {[%emt 0:02:25]} exd4 {[%emt 0:04:20]} 17. cxd4 {[%emt 0:02:26]} Kg8 {[%emt 0:01:16]} 18. Rac1 {[%emt 0:02:38]} Qd7 {[%emt 0:00:29]} 19. Na5 {[%emt 0:04:42]} Rac8 {[%emt 0:00:33]} 20. Ndb3 {[%emt 0:02:32]} Nf6 {[%emt 0:02:44] [#] Hoping for ...Nf4.} 21. Qf3 {[%emt 0:02:57]} Bg4 {[%emt 0:00:24]} 22. Qg3 {[%emt 0:06:30]} Nh5 {[%emt 0:00:47] White did not feel at home in the position after the opening.   Weighted Error Value: White=0.83/Black=0.02 (flawless)} 0-1